bitfinex/quotes_ETHUSD_20230118
["timestamp","ask_amount","ask_price","bid_price","bid_amount"]
[1674033079979,2.35063507,1579.9,1579.7,3.11662407]
[1674033080138,2.28463507,1579.9,1579.8,3.11662407]
[1674033080348,10.16614401,1579.9,1579.7,0.066]
[1674033080606,3.20229073,1579.8,1579.5,6.39693]
[1674033080827,2.1029068,1579.8,1579.6,3.11662407]
[1674033081141,2.1029068,1579.8,1579.5,6.39693]
[1674033081332,1.44,1579.8,1579.5,9.51355407]
[1674033081925,2.1029068,1579.8,1579.5,9.51355407]
[1674033082392,1.44411768,1579.7,1579.5,0.066]
[1674033082601,9.53691787,1579.7,1579.4,3.0]
[1674033082820,8.50344448,1579.7,1579.4,3.11662407]
[1674033083960,8.50344448,1579.7,1579.3,0.066]
[1674033084136,8.50344448,1579.7,1579.2,0.35256046]
[1674033084137,1.44,1579.4,1579.2,0.35256046]
[1674033084348,1.44,1579.4,1579.2,0.28656046]
[1674033084551,1.44,1579.4,1579.2,9.73543453]
[1674033084821,1.43,1579.5,1579.2,22.46607453]
[1674033085014,1.43,1579.5,1579.2,25.34593198]
[1674033085341,1.43,1579.5,1579.3,3.11662407]
[1674033085500,1.43,1579.5,1579.3,9.44835407]
[1674033085715,1.43,1579.5,1579.3,9.51435407]
[1674033087135,9.5907,1579.7,1579.4,6.11662407]
[1674033087439,9.5907,1579.7,1579.5,22.72161648]
[1674033087440,0.066,1579.7,1579.5,22.72161648]
[1674033087604,2.28463507,1579.9,1579.6,9.44733407]
[1674033087813,2.28463507,1579.9,1579.7,3.11662407]
[1674033088267,1.43,1579.8,1579.6,0.066]
[1674033088492,2.0929068,1579.8,1579.5,6.39711]
[1674033088648,2.0929068,1579.8,1579.5,9.51373407]
[1674033088858,1.43,1579.8,1579.5,9.51373407]
[1674033089190,2.0929068,1579.8,1579.5,9.51373407]
[1674033089637,2.0929068,1579.8,1579.5,0.066]
[1674033089638,1.44,1579.7,1579.5,0.066]
[1674033089810,1.437,1579.6,1579.3,0.066]
[1674033090020,1.44,1579.5,1579.2,0.35256046]
[1674033090249,1.44,1579.5,1579.2,3.40318453]
[1674033090453,2.44,1579.5,1579.2,3.40318453]
[1674033090663,1.44,1579.5,1579.2,3.40318453]
[1674033091117,1.44,1579.5,1579.2,3.40880243]
[1674033091714,7.77112,1579.5,1579.2,3.40880243]
[1674033091965,1.44,1579.3,1579.2,0.29217836]
[1674033095010,0.066,1579.4,1579.2,0.29217836]
[1674033095011,1.44,1579.4,1579.2,0.29217836]
[1674033095378,3.19360587,1579.3,1579.2,0.29217836]
[1674033095586,15.85742587,1579.3,1579.2,0.29217836]
[1674033095848,1.497,1579.3,1579.2,0.29217836]
[1674033096060,1.431,1579.3,1579.2,0.29217836]
[1674033098010,14.09482,1579.3,1579.2,0.29217836]
[1674033098219,15.92342871,1579.3,1579.2,0.29217836]
[1674033098422,23.69333871,1579.3,1579.2,0.29217836]
[1674033098737,24.0247921,1579.3,1579.2,0.29217836]
[1674033098947,25.35472337,1579.3,1579.2,0.29217836]
[1674033099272,25.35472337,1579.3,1578.7,0.066]
[1674033099273,1.0,1579.2,1578.6,0.066]
[1674033099456,2.874,1578.7,1578.4,0.77820161]
[1674033099599,1.432,1578.5,1578.4,3.82882568]
[1674033099808,1.432,1578.5,1578.4,3.1694975]
[1674033101116,1.432,1578.5,1578.4,0.05287343]
[1674033102607,1.43611768,1578.5,1578.4,0.05287343]
[1674033104112,1.432,1578.5,1578.4,0.05287343]
[1674033108781,14.10224,1578.5,1578.4,0.05287343]
[1674033108987,14.16824,1578.5,1578.4,0.05287343]
[1674033109204,9.27112,1578.5,1578.4,0.05287343]
[1674033110237,7.83912,1578.5,1578.4,0.05287343]
[1674033111426,14.17424,1578.5,1578.4,0.05287343]
[1674033111788,21.94936,1578.5,1578.4,0.05287343]
[1674033112630,23.38936,1578.5,1578.4,0.05287343]
[1674033112845,26.50598407,1578.5,1578.4,0.05086981]
[1674033115286,21.94936,1578.5,1578.4,0.05086981]
[1674033115923,25.06598407,1578.5,1578.4,0.05086981]
[1674033117038,1.3289815,1578.3,1578.2,0.05107521]
[1674033117251,1.3289815,1578.3,1577.9,0.0056179]
[1674033117252,26.34564,1578.2,1577.9,0.0056179]
[1674033117386,3.11662407,1578.1,1577.9,0.0056179]
[1674033117589,19.01139,1578.0,1577.9,0.0056179]
[1674033117857,19.07739,1578.0,1577.9,0.0056179]
[1674033118241,21.95339,1578.0,1577.9,0.0056179]
[1674033118457,15.61626,1578.0,1577.9,0.0056179]
[1674033118663,21.95339,1578.0,1577.9,0.0056179]
[1674033119065,15.61626,1578.0,1577.9,0.0056179]
[1674033119728,9.27913,1578.0,1577.9,0.0056179]
[1674033120280,1.506,1578.0,1577.9,1.3036179]
[1674033120590,0.066,1578.1,1577.9,1.3036179]
[1674033120799,19.07595,1578.2,1577.9,1.3036179]
[1674033120957,6.33674,1578.1,1577.9,1.3036179]
[1674033121171,6.40274,1578.1,1577.9,1.3036179]
[1674033121556,0.066,1578.1,1577.9,1.3036179]
[1674033121697,12.73928,1578.2,1577.9,1.43870524]
[1674033123298,0.066,1578.2,1578.0,3.12224197]
[1674033123506,0.0869815,1578.3,1578.0,9.45921197]
[1674033123839,0.0869815,1578.3,1578.0,9.52521197]
[1674033124057,0.0869815,1578.3,1578.0,11.9027379]
[1674033124241,0.0869815,1578.3,1578.0,0.0716179]
[1674033124242,19.0948815,1578.3,1578.0,0.0716179]
[1674033124452,19.1608815,1578.3,1578.0,0.0056179]
[1674033124645,1.44,1578.2,1578.0,0.0056179]
[1674033124852,12.67346,1578.1,1578.0,0.0056179]
[1674033125061,12.73946,1578.1,1578.0,0.0056179]
[1674033125277,19.07619,1578.1,1578.0,0.0056179]
[1674033125529,20.51319,1578.1,1578.0,0.0056179]
[1674033126009,14.17646,1578.1,1578.0,0.0056179]
[1674033126221,6.40273,1578.1,1578.0,0.0056179]
[1674033126488,12.73946,1578.1,1578.0,0.0056179]
[1674033126650,19.07619,1578.1,1578.0,0.0056179]
[1674033127546,12.73946,1578.1,1578.0,0.0056179]
[1674033128867,19.07619,1578.1,1578.0,0.0056179]
[1674033133369,20.50219,1578.1,1578.0,0.0056179]
[1674033135940,19.07619,1578.1,1578.0,0.0056179]
[1674033136093,0.066,1578.1,1578.0,1.2476179]
[1674033136308,0.066,1578.2,1578.0,1.2476179]
[1674033136517,0.1529815,1578.3,1578.0,1.2476179]
[1674033136726,0.1529815,1578.3,1578.1,0.12476179]
[1674033136727,0.0869815,1578.3,1578.1,0.12476179]
[1674033137439,0.0869815,1578.3,1578.0,6.4087279]
[1674033137654,1.439,1578.2,1578.0,0.0716179]
[1674033137843,14.11205,1578.2,1578.0,0.0056179]
[1674033138038,14.17805,1578.2,1578.0,0.0056179]
[1674033138388,0.066,1578.2,1578.0,0.0056179]
[1674033138608,6.4889115,1578.3,1578.0,0.0056179]
[1674033138970,12.8248415,1578.3,1578.0,0.0056179]
[1674033139399,19.1607715,1578.3,1578.0,0.0056179]
[1674033141292,12.8248415,1578.3,1578.0,0.0056179]
[1674033141509,6.4889115,1578.3,1578.0,0.0056179]
[1674033141703,0.1529815,1578.3,1578.0,0.0056179]
[1674033141921,0.0869815,1578.3,1578.0,0.0056179]
[1674033142160,0.0869815,1578.3,1578.0,1.38026169]
[1674033142596,0.0869815,1578.3,1578.0,10.83400576]
[1674033142817,0.0869815,1578.3,1578.1,3.11662407]
[1674033143031,0.08385364,1578.3,1578.2,9.45295407]
[1674033143356,0.08385364,1578.3,1578.2,22.19161407]
[1674033143495,0.08385364,1578.3,1578.2,25.99517048]
[1674033146807,0.08385364,1578.3,1578.2,30.42217048]
[1674033147520,0.08385364,1578.3,1578.2,30.65217048]
[1674033148391,0.08385364,1578.3,1578.2,22.65884048]
[1674033150162,0.08385364,1578.3,1578.2,29.22517048]
[1674033150864,0.08385364,1578.3,1578.2,30.65717048]
[1674033151917,0.08385364,1578.3,1578.2,30.89470268]
[1674033152270,0.72935461,1578.9,1578.4,25.34101]
[1674033152459,1.80502684,1579.0,1578.6,19.00393]
[1674033152648,1.80502684,1579.0,1578.6,22.18655407]
[1674033153286,1.76342267,1578.9,1578.6,22.18655407]
[1674033153633,0.80999493,1579.0,1578.6,22.18655407]
[1674033154225,0.80999493,1579.0,1578.7,3.11662407]
[1674033154442,0.80999493,1579.0,1578.7,11.66940948]
[1674033154776,0.80999493,1579.0,1578.7,11.73540948]
[1674033154945,0.14664032,1579.0,1578.7,11.73540948]
[1674033156368,19.14607032,1579.0,1578.7,2.28465541]
[1674033156579,19.21207032,1579.0,1578.6,10.2189]
[1674033156730,12.87888032,1579.0,1578.6,19.67023407]
[1674033156939,13.54223493,1579.0,1578.6,13.33552407]
[1674033157151,1.44,1578.9,1578.6,10.2189]
[1674033157360,6.47798,1578.8,1578.6,10.2189]
[1674033157638,6.54398,1578.8,1578.6,0.066]
[1674033157942,6.54398,1578.8,1578.5,3.0]
[1674033160147,0.066,1578.8,1578.5,9.33508]
[1674033160302,6.39971,1578.9,1578.5,9.40108]
[1674033160513,6.39971,1578.9,1578.5,12.51770407]
[1674033160718,0.066,1578.9,1578.6,3.11662407]
[1674033160982,0.14664032,1579.0,1578.7,6.33432]
[1674033161154,0.14664032,1579.0,1578.7,6.40032]
[1674033163251,0.14664032,1579.0,1578.7,9.51694407]
[1674033164344,0.14664032,1579.0,1578.7,6.40032]
[1674033164560,1.44411768,1578.9,1578.7,0.066]
[1674033164767,6.33392,1578.8,1578.5,3.0]
[1674033164984,6.39992,1578.8,1578.5,6.11662407]
[1674033165141,6.39992,1578.8,1578.5,6.18262407]
[1674033165613,6.39992,1578.8,1578.5,3.18262407]
[1674033165771,6.39992,1578.8,1578.5,3.11662407]
[1674033166563,19.06776,1578.8,1578.4,18.4056]
[1674033166749,1.44,1578.7,1578.4,0.066]
[1674033166920,6.3348,1578.6,1578.3,10.0469]
[1674033167130,6.4008,1578.6,1578.3,10.0449]
[1674033167386,6.4008,1578.6,1578.3,10.0469]
[1674033167613,6.4008,1578.6,1578.3,0.066]
[1674033167761,14.1756,1578.6,1578.2,14.43775]
[1674033167970,14.1756,1578.6,1578.2,17.55437407]
[1674033168182,14.1756,1578.6,1578.2,9.51877407]
[1674033168874,14.1756,1578.6,1578.2,0.066]
[1674033169040,7.77574,1578.4,1578.1,10.0469]
[1674033169254,0.066,1578.4,1578.1,0.066]
[1674033169491,14.17681,1578.5,1578.0,12.75125692]
[1674033169657,6.33555,1578.4,1578.0,15.86788099]
[1674033169870,0.066,1578.4,1578.0,26.06078099]
[1674033170189,6.40138,1578.5,1578.0,32.39791099]
[1674033170722,0.066,1578.5,1578.2,6.33625]
[1674033170928,0.00411768,1578.6,1578.3,3.11451704]
[1674033171393,0.66747229,1578.6,1578.3,3.11451704]
[1674033171551,8.1025164,1578.6,1578.2,6.40225]
[1674033171764,7.06822229,1578.6,1578.2,9.51887407]
[1674033172105,7.06822229,1578.6,1578.2,3.18262407]
[1674033172340,7.06822229,1578.6,1578.1,12.67279]
[1674033172341,21.16969229,1578.6,1578.1,6.40233]
[1674033172650,21.16969229,1578.6,1578.1,9.51895407]
[1674033173477,0.66335461,1578.5,1578.1,9.51895407]
[1674033173648,6.3356,1578.4,1578.1,0.066]
[1674033173873,12.7372,1578.4,1578.0,10.2645179]
[1674033174081,12.7372,1578.4,1578.0,13.38114197]
[1674033175323,12.7372,1578.4,1578.0,19.71821197]
[1674033175540,6.4016,1578.4,1578.0,23.71533617]
[1674033175771,6.4016,1578.4,1578.0,30.05246617]
[1674033176190,0.066,1578.4,1578.1,4.11662407]
[1674033176382,14.60086,1578.5,1578.1,15.78977407]
[1674033176622,14.60086,1578.5,1578.1,15.85577407]
[1674033176832,14.60086,1578.5,1578.1,19.49462269]
[1674033179776,8.2656,1578.5,1578.2,3.11662407]
[1674033179954,8.2656,1578.5,1578.2,15.78889407]
[1674033180177,0.066,1578.5,1578.2,15.85489407]
[1674033180383,7.00254229,1578.6,1578.2,15.85489407]
[1674033180384,7.06854229,1578.6,1578.2,15.85489407]
[1674033180614,7.06854229,1578.6,1578.2,18.43791234]
[1674033182858,6.40518768,1578.6,1578.2,18.43791234]
[1674033183822,6.40518768,1578.6,1578.2,18.44353024]
[1674033184132,0.07011768,1578.6,1578.2,18.44353024]
[1674033184342,0.066,1578.7,1578.3,3.11662407]
[1674033184518,17.3286,1578.8,1578.4,23.87476648]
[1674033184729,8.1105,1578.8,1578.4,23.94076648]
[1674033185628,0.066,1578.8,1578.5,3.11662407]
[1674033185844,0.66335461,1578.9,1578.6,6.64638241]
[1674033185996,0.66335461,1578.9,1578.6,6.71238241]
[1674033185997,1.76342082,1578.9,1578.6,6.71238241]
[1674033187061,1.76342082,1578.9,1578.6,13.04710241]
[1674033187707,1.76342082,1578.9,1578.6,16.16372648]
[1674033187878,19.77035373,1579.0,1578.6,22.49844648]
[1674033187879,0.87599493,1579.0,1578.6,22.49844648]
[1674033188089,0.80999493,1579.0,1578.7,2.24984465]
[1674033188412,0.80999493,1579.0,1578.7,8.58400465]
[1674033188620,0.14664032,1579.0,1578.7,24.43526872]
[1674033190094,0.14664032,1579.0,1578.8,3.11662407]
[1674033190338,0.14664032,1579.0,1578.8,17.54548603]
[1674033190568,0.14664032,1579.0,1578.8,23.94540603]
[1674033195606,0.14664032,1579.0,1578.8,23.9422914]
[1674033197777,0.14664032,1579.0,1578.9,3.11662407]
[1674033198345,0.14664032,1579.0,1578.9,15.78366407]
[1674033198493,0.14664032,1579.0,1578.9,15.84966407]
[1674033200140,0.14664032,1579.0,1578.9,9.51614407]
[1674033203454,0.14664032,1579.0,1578.9,15.84966407]
[1674033203715,0.14664032,1579.0,1578.9,28.84152948]
[1674033204318,0.14664032,1579.0,1578.9,38.72362948]
[1674033206537,0.14664032,1579.0,1578.9,38.95362948]
[1674033208721,0.14664032,1579.0,1578.9,38.95162948]
[1674033208951,0.14664032,1579.0,1578.9,38.95362948]
[1674033212383,0.14664032,1579.0,1578.9,43.89062948]
[1674033213650,0.14664032,1579.1,1579.0,1.0]
[1674033213827,0.14664032,1579.1,1579.0,29.26604702]
[1674033214039,0.14664032,1579.1,1579.0,31.33204702]
[1674033214910,0.14664032,1579.1,1579.0,34.83204702]
[1674033215118,0.14664032,1579.1,1579.0,31.33204702]
[1674033215962,0.14664032,1579.1,1579.0,29.67104702]
[1674033216170,0.14664032,1579.1,1579.0,25.18198407]
[1674033217931,0.14664032,1579.1,1579.0,18.84886407]
[1674033219136,0.14664032,1579.1,1579.0,12.51574407]
[1674033221015,0.14664032,1579.1,1579.0,25.18198407]
[1674033221188,0.14664032,1579.1,1579.0,22.18198407]
[1674033221552,0.14664032,1579.1,1579.0,26.02172048]
[1674033222243,0.14664032,1579.1,1579.0,22.18198407]
[1674033222881,0.14664032,1579.1,1579.0,15.84886407]
[1674033223312,0.14664032,1579.1,1579.0,6.39912]
[1674033223525,0.14664032,1579.1,1579.0,0.066]
[1674033223891,0.14664032,1579.1,1578.9,22.61455]
[1674033224081,0.14664032,1579.1,1578.9,25.73117407]
[1674033225650,0.14664032,1579.1,1578.9,36.34094848]
[1674033226056,0.14664032,1579.1,1578.9,32.06469407]
[1674033228493,0.14664032,1579.1,1579.0,3.11662407]
[1674033228706,0.14664032,1579.1,1579.0,23.55877941]
[1674033228863,0.14664032,1579.1,1579.0,23.62477941]
[1674033229745,0.14664032,1579.1,1579.0,26.62477941]
[1674033229958,0.14664032,1579.1,1579.0,30.90878235]
[1674033230546,0.14664032,1579.1,1579.0,24.57566235]
[1674033230751,0.14664032,1579.1,1579.0,18.85465941]
[1674033231710,0.14664032,1579.1,1579.0,12.51574407]
[1674033231921,0.14664032,1579.1,1579.0,3.066]
[1674033232154,1.38864032,1579.1,1578.9,9.9481]
[1674033232332,1.59383981,1579.1,1578.9,13.06472407]
[1674033232546,0.35183981,1579.1,1578.9,13.06472407]
[1674033232910,0.14664032,1579.1,1578.9,13.06472407]
[1674033233061,0.14664032,1579.1,1578.9,3.18262407]
[1674033233271,0.14664032,1579.1,1578.9,3.11662407]
[1674033233961,0.14664032,1579.1,1578.9,9.45011407]
[1674033234278,0.14664032,1579.1,1578.9,3.18262407]
[1674033234465,1.6283451,1579.1,1578.8,9.39958]
[1674033234633,1.6283451,1579.1,1578.8,12.51620407]
[1674033235204,0.96499049,1579.1,1578.8,12.51620407]
[1674033235898,1.6283451,1579.1,1578.8,12.51620407]
[1674033236471,9.06100029,1579.1,1578.8,0.066]
[1674033236681,9.06100029,1579.1,1578.7,16.77059]
[1674033236682,0.90610003,1579.0,1578.7,16.77059]
[1674033236895,9.30779971,1579.1,1578.7,19.88721407]
[1674033237543,9.30779971,1579.1,1578.7,19.88336167]
[1674033238340,1.76329193,1579.0,1578.7,19.88336167]
[1674033239474,8.09642193,1579.0,1578.7,0.066]
[1674033239683,8.16242193,1579.0,1578.6,26.86732]
[1674033240017,1.82929193,1579.0,1578.6,23.64924407]
[1674033240231,1.09993732,1579.0,1578.7,6.33431]
[1674033240579,1.09993732,1579.0,1578.7,6.40031]
[1674033244123,14.445718,1579.1,1578.7,6.40031]
[1674033244520,14.445718,1579.1,1579.0,0.0056179]
[1674033244836,15.54562835,1579.1,1579.0,0.0056179]
[1674033246213,22.87336483,1579.1,1579.0,0.0056179]
[1674033247197,23.53659247,1579.1,1579.0,0.0056179]
[1674033247408,10.87094247,1579.1,1579.0,0.0056179]
[1674033247624,23.53655247,1579.1,1579.0,0.0056179]
[1674033248315,25.96823893,1579.1,1579.0,0.0056179]
[1674033248551,35.03213039,1579.1,1579.0,0.0056179]
[1674033248712,32.71104738,1579.1,1579.0,0.0056179]
[1674033248926,34.36904887,1579.1,1579.0,0.0056179]
[1674033249136,0.00397548,1578.9,1578.5,17.5718119]
[1674033249421,14.77375669,1578.9,1578.5,20.68843597]
[1674033249717,14.83975669,1578.9,1578.5,20.68843597]
[1674033250033,14.83975669,1578.9,1578.5,14.35349597]
[1674033250188,12.66864,1578.7,1578.5,0.9674719]
[1674033250453,0.066,1578.7,1578.5,0.9014719]
[1674033250664,7.84014,1578.8,1578.5,0.9014719]
[1674033250927,7.84014,1578.8,1578.4,12.73684]
[1674033251140,7.84014,1578.8,1578.4,6.40142]
[1674033252259,6.40014,1578.8,1578.4,6.40142]
[1674033252610,0.066,1578.8,1578.4,22.18908407]
[1674033252852,14.17665768,1578.9,1578.4,22.18908407]
[1674033253130,0.07011768,1578.9,1578.6,6.33468]
[1674033253353,0.07011768,1578.9,1578.6,6.40068]
[1674033253354,0.00411768,1578.9,1578.6,6.40068]
[1674033253711,0.00411768,1578.9,1578.6,12.7354]
[1674033253959,0.00411768,1578.9,1578.6,15.17598525]
[1674033254500,0.00411768,1578.9,1578.6,18.29260932]
[1674033255935,0.00411768,1578.9,1578.6,24.62732932]
[1674033256164,2.39787246,1579.0,1578.8,12.66784]
[1674033256337,11.09068334,1579.1,1578.8,12.73384]
[1674033256338,8.10884032,1579.1,1578.8,12.73384]
[1674033256979,0.21264032,1579.1,1578.8,12.73384]
[1674033257262,0.14664032,1579.1,1578.8,12.73384]
[1674033257408,1.90943298,1579.1,1578.8,12.73384]
[1674033257623,0.80954702,1579.1,1578.8,12.73384]
[1674033257890,0.14664032,1579.1,1578.8,14.95229441]
[1674033258020,0.80954702,1579.1,1578.8,14.95229441]
[1674033258562,0.14664032,1579.1,1578.8,24.40283848]
[1674033259427,7.14227702,1579.1,1578.8,0.066]
[1674033259600,7.20827702,1579.1,1578.7,6.40590645]
[1674033259817,7.2123947,1579.1,1578.7,9.52253052]
[1674033260482,0.8796647,1579.1,1578.7,15.85685052]
[1674033260668,0.8136647,1579.1,1578.7,15.85685052]
[1674033260871,0.8136647,1579.1,1578.8,3.11662407]
[1674033261121,0.8136647,1579.1,1578.9,6.33352]
[1674033261122,0.80954702,1579.1,1578.9,6.33352]
[1674033261344,0.14664032,1579.1,1578.9,6.39952]
[1674033262017,0.14664032,1579.1,1578.9,12.73304]
[1674033262959,0.14664032,1579.1,1578.9,15.84966407]
[1674033263167,0.14664032,1579.1,1578.9,18.70135348]
[1674033264116,0.14664032,1579.1,1578.9,25.03487348]
[1674033264796,0.14664032,1579.1,1579.0,15.78286407]
[1674033265009,0.14664032,1579.1,1579.0,15.84886407]
[1674033265373,0.14664032,1579.1,1579.0,0.066]
[1674033265585,0.14664032,1579.1,1578.9,6.39952]
[1674033265794,0.14664032,1579.1,1578.9,9.51614407]
[1674033266657,0.14664032,1579.1,1578.9,6.39952]
[1674033267425,0.14664032,1579.1,1578.9,8.435593]
[1674033267828,0.14664032,1579.1,1578.9,24.21925707]
[1674033268037,0.14664032,1579.1,1579.0,3.11662407]
[1674033268392,0.14664032,1579.1,1579.0,15.78286407]
[1674033268569,0.14664032,1579.1,1579.0,15.84886407]
[1674033268896,0.14664032,1579.1,1579.0,26.04553884]
[1674033269261,0.14664032,1579.1,1579.0,29.04553884]
[1674033271006,0.1441517,1579.1,1579.0,29.04553884]
[1674033273106,0.1441517,1579.1,1579.0,27.60553884]
[1674033273298,1.3861517,1579.1,1579.0,0.066]
[1674033273470,0.1441517,1579.1,1578.9,12.74970061]
[1674033273833,0.1441517,1579.1,1578.9,15.86632468]
[1674033275090,0.1441517,1579.1,1578.9,6.41639061]
[1674033275927,2.32817601,1579.1,1578.9,0.066]
[1674033276158,2.32817601,1579.1,1578.8,16.19497]
[1674033276345,8.66092601,1579.1,1578.8,9.8614]
[1674033276552,0.8660926,1579.0,1578.8,9.8614]
[1674033276942,2.2980926,1579.0,1578.8,0.066]
[1674033277148,15.6273193,1579.0,1578.6,14.62334]
[1674033277470,8.6972126,1579.0,1578.6,14.62334]
[1674033278128,15.6933193,1579.0,1578.6,14.62334]
[1674033278315,0.95753226,1578.9,1578.6,8.289]
[1674033278574,9.39396896,1578.9,1578.6,0.066]
[1674033278901,9.45996896,1578.9,1578.5,17.00527]
[1674033279052,9.45996896,1578.9,1578.5,20.12189407]
[1674033279255,0.9459969,1578.8,1578.5,20.12189407]
[1674033279735,0.066,1578.9,1578.5,32.79213407]
[1674033279956,14.7343267,1579.0,1578.5,32.79213407]
[1674033280523,14.7343267,1579.0,1578.5,32.80922901]
[1674033280993,21.07178438,1579.0,1578.5,26.47410901]
[1674033281154,21.07178438,1579.0,1578.5,10.6705]
[1674033281155,1.436,1578.9,1578.5,10.6705]
[1674033281361,1.44,1578.7,1578.5,0.066]
[1674033281571,1.44,1578.7,1578.4,6.40118]
[1674033281848,1.44,1578.7,1578.4,9.51780407]
[1674033283622,1.44411768,1578.6,1578.4,0.066]
[1674033283777,1.44411768,1578.6,1578.3,19.17862]
[1674033283991,1.44411768,1578.6,1578.3,22.29524407]
[1674033284448,0.00411768,1578.6,1578.3,28.63117407]
[1674033287111,8.4347,1578.7,1578.4,16.78757407]
[1674033287292,8.4347,1578.7,1578.5,1.67875741]
[1674033287456,8.4347,1578.7,1578.4,23.20456612]
[1674033287457,0.066,1578.7,1578.4,23.20456612]
[1674033287666,0.066,1578.9,1578.5,3.11662407]
[1674033287929,26.4620267,1579.0,1578.6,6.33463]
[1674033288161,26.4620267,1579.0,1578.6,6.40063]
[1674033288162,18.2717306,1579.0,1578.6,6.40063]
[1674033288349,16.8686267,1579.0,1578.6,6.40063]
[1674033288737,16.8686267,1579.0,1578.6,12.73535]
[1674033288738,9.0955067,1579.0,1578.6,12.73535]
[1674033288947,9.0955067,1579.0,1578.6,14.95403741]
[1674033290044,15.4286667,1579.0,1578.6,8.61931741]
[1674033290261,15.4286667,1579.0,1578.6,6.40063]
[1674033290642,15.43278438,1579.0,1578.6,6.40063]
[1674033291863,15.43278438,1579.0,1578.6,12.73535]
[1674033292991,8.43671768,1579.0,1578.8,6.33392]
[1674033293205,8.43671768,1579.0,1578.8,6.39992]
[1674033293206,0.066,1579.0,1578.8,6.39992]
[1674033293376,0.1441517,1579.1,1578.8,8.71840641]
[1674033294380,0.1441517,1579.1,1578.8,8.7163119]
[1674033295567,0.1441517,1579.1,1578.8,6.39782549]
[1674033296978,0.1441517,1579.1,1578.8,22.18228956]
[1674033302812,0.1441517,1579.1,1579.0,12.66624]
[1674033303028,0.1441517,1579.1,1579.0,12.73224]
[1674033305024,0.1441517,1579.1,1579.0,15.84886407]
[1674033305271,0.1441517,1579.1,1579.0,25.20687048]
[1674033305461,0.1441517,1579.1,1579.0,28.20687048]
[1674033307684,0.12971365,1579.1,1579.0,28.20687048]
[1674033311288,0.12971365,1579.1,1579.0,36.25501409]
[1674033313250,0.12971365,1579.1,1579.0,34.81501409]
[1674033313492,0.12971365,1579.1,1579.0,33.23012768]
[1674033313703,0.12971365,1579.1,1579.0,25.19682768]
[1674033315648,0.12971365,1579.1,1579.0,18.86370768]
[1674033317973,0.12971365,1579.1,1579.0,18.86170768]
[1674033318183,0.12971365,1579.1,1579.0,18.86370768]
[1674033318509,0.12971365,1579.1,1579.0,28.72175445]
[1674033320081,0.12971365,1579.1,1579.0,22.38863445]
[1674033320438,0.12673408,1579.1,1579.0,22.38863445]
[1674033320808,0.12673408,1579.1,1579.0,28.71975445]
[1674033321135,0.12673408,1579.1,1579.0,22.38863445]
[1674033321492,0.12673408,1579.1,1579.0,18.86370768]
[1674033322800,0.12673408,1579.1,1579.0,25.19682768]
[1674033325954,0.12673408,1579.1,1579.0,30.62394697]
[1674033326475,0.12673408,1579.1,1579.0,30.35782768]
[1674033327481,0.12673408,1579.1,1579.0,30.62396298]
[1674033328014,0.12673408,1579.1,1579.0,36.2019394]
[1674033328164,0.12673408,1579.1,1579.0,36.8632906]
[1674033329118,0.12673408,1579.1,1579.0,36.2019394]
[1674033329731,0.12673408,1579.1,1579.0,43.5342906]
[1674033330194,0.12673408,1579.1,1579.0,42.8729394]
[1674033331160,0.12673408,1579.1,1579.0,39.3729394]
[1674033332610,0.12673408,1579.1,1579.0,37.9419394]
[1674033333246,0.12673408,1579.1,1579.0,38.6032906]
[1674033333474,0.12673408,1579.1,1579.0,40.0302906]
[1674033333697,0.12673408,1579.1,1579.0,42.8689394]
[1674033333860,0.12673408,1579.1,1579.0,43.5302906]
[1674033334958,0.12673408,1579.1,1579.0,39.3689394]
[1674033336794,0.12673408,1579.1,1579.0,42.8689394]
[1674033337592,0.12673408,1579.1,1579.0,43.5302906]
[1674033338527,0.18951338,1579.3,1579.2,25.32928]
[1674033338749,0.18951338,1579.3,1579.2,38.54606912]
[1674033338895,0.18951338,1579.3,1579.2,35.04606912]
[1674033339318,0.18951338,1579.3,1579.2,49.08856912]
[1674033339769,0.18951338,1579.3,1579.2,45.58856912]
[1674033341540,0.18951338,1579.3,1579.2,12.51494407]
[1674033341754,0.18951338,1579.3,1579.2,25.17958407]
[1674033343470,0.18951338,1579.3,1579.2,25.19234991]
[1674033344479,0.18951338,1579.3,1579.2,18.84726407]
[1674033344728,0.18951338,1579.3,1579.2,12.51494407]
[1674033345351,0.18951338,1579.3,1579.2,18.84726407]
[1674033347148,0.18951338,1579.3,1579.2,12.51494407]
[1674033348177,0.18951338,1579.3,1579.2,3.066]
[1674033348453,0.28969456,1579.3,1579.2,3.0]
[1674033348569,0.28969456,1579.3,1579.1,12.7722605]
[1674033348778,0.28969456,1579.3,1579.1,15.88888457]
[1674033352072,0.28969456,1579.3,1579.1,9.55439457]
[1674033352286,0.28969456,1579.3,1579.1,0.1073705]
[1674033352287,1.72969456,1579.3,1579.1,0.1073705]
[1674033352625,1.72969456,1579.3,1579.1,0.0413705]
[1674033352626,1.59896946,1579.2,1579.1,0.0413705]
[1674033355251,4.80170511,1579.2,1579.1,0.0413705]
[1674033355394,11.13402511,1579.2,1579.1,0.0413705]
[1674033355714,11.20002511,1579.2,1579.1,0.0413705]
[1674033356132,11.20414279,1579.2,1579.1,0.0413705]
[1674033356506,17.53646279,1579.2,1579.1,0.0413705]
[1674033358967,15.77372714,1579.2,1579.1,0.0413705]
[1674033359806,16.43663384,1579.2,1579.1,0.0413705]
[1674033360288,17.53651217,1579.2,1579.1,0.0413705]
[1674033360895,24.38730951,1579.2,1579.1,0.0413705]
[1674033361122,37.4946946,1579.2,1579.1,0.0413705]
[1674033361435,38.87114684,1579.2,1578.4,12.73657]
[1674033361646,1.44,1578.7,1578.5,6.3351]
[1674033361816,1.44,1578.7,1578.5,6.4011]
[1674033362040,1.44,1578.7,1578.6,1.0]
[1674033362221,1.44,1578.8,1578.6,4.11662407]
[1674033362431,0.066,1578.9,1578.7,3.11662407]
[1674033362655,1.428,1579.0,1578.7,5.42870248]
[1674033362903,1.428,1579.0,1578.8,6.33392]
[1674033363114,1.428,1579.0,1578.8,6.39992]
[1674033363652,1.437,1579.1,1578.8,6.39992]
[1674033365693,15.61163768,1579.2,1578.8,6.39992]
[1674033365949,15.61163768,1579.2,1578.8,7.39992]
[1674033366162,15.61163768,1579.2,1578.8,6.39992]
[1674033369280,1.44,1579.1,1578.8,0.066]
[1674033369489,7.77352,1578.9,1578.7,0.066]
[1674033369738,14.17324,1578.9,1578.5,6.40093]
[1674033370131,7.83952,1578.9,1578.5,6.40093]